fUST/lending_fUST_20241021
["ID","MTS","AMOUNT","RATE_DAILY","PERIOD"]
[340586780,1729517432502,-273.140299,0.00015386,2]
[340586781,1729517432512,-14239.16799129,0.00016274,2]
[340586782,1729517432522,-1000.0,0.00016279,2]
[340586783,1729517432532,-503.70711984,0.00016373,2]
[340586784,1729517432541,-151.0,0.00016379,2]
[340586785,1729517432551,-151.0,0.00016379,2]
[340586786,1729517432560,-772.469547,0.00016379,2]
[340586787,1729517432569,-151.0,0.00016379,2]
[340586788,1729517432581,-772.469547,0.00016379,2]
[340586789,1729517432592,-343.740269,0.00016379,2]
[340586790,1729517432601,-343.740269,0.00016379,2]
[340586791,1729517432611,-151.0,0.00016379,2]
[340586792,1729517432620,-252.161024,0.0001638,2]
[340586793,1729517432629,-268.692063,0.0001638,2]
[340586794,1729517432639,-151.0,0.0001638,2]
[340586795,1729517432649,-252.161024,0.0001638,2]
[340586796,1729517432660,-268.692063,0.0001638,2]
[340586797,1729517432670,-151.0,0.0001638,2]
[340586798,1729517432680,-151.0,0.0001638,2]
[340586799,1729517432690,-151.0,0.0001638,2]
[340586800,1729517432699,-151.0,0.0001638,2]
[340586801,1729517432708,-151.0,0.0001638,2]
[340586802,1729517432718,-151.0,0.0001638,2]
[340586803,1729517432727,-772.469547,0.0001638,2]
[340586804,1729517432736,-151.0,0.0001638,2]
[340586805,1729517432746,-772.469547,0.0001638,2]
[340586806,1729517432756,-343.740269,0.0001638,2]
[340586807,1729517432765,-343.740269,0.0001638,2]
[340586808,1729517432775,-151.0,0.0001638,2]
[340586809,1729517432785,-204.1846972,0.00016388,2]
[340586810,1729517432795,-268.692063,0.00016388,2]
[340586811,1729517432805,-252.161024,0.00016388,2]
[340586812,1729517432814,-268.692063,0.00016388,2]
[340586813,1729517432826,-252.161024,0.00016388,2]
[340586814,1729517432839,-151.0,0.00016388,2]
[340586815,1729517432848,-151.0,0.00016388,2]
[340586816,1729517432858,-252.161024,0.00016388,2]
[340586817,1729517432867,-252.161024,0.00016388,2]
[340586818,1729517432879,-268.692063,0.00016388,2]
[340586819,1729517432889,-268.692063,0.00016388,2]
[340586820,1729517432899,-151.0,0.00016388,2]
[340586821,1729517432912,-151.0,0.00016388,2]
[340586822,1729517432922,-151.0,0.00016388,2]
[340586823,1729517432932,-151.0,0.00016388,2]
[340586824,1729517432941,-276.840967,0.00016388,2]
[340586825,1729517432952,-151.0,0.00016388,2]
[340586826,1729517432962,-151.0,0.00016388,2]
[340586827,1729517432971,-151.0,0.00016388,2]
[340586828,1729517432980,-151.0,0.00016388,2]
[340586829,1729517432989,-264.203421,0.00016388,2]
[340586830,1729517432999,-772.469547,0.00016388,2]
[340586831,1729517433009,-772.469547,0.00016388,2]
[340586832,1729517433018,-151.0,0.00016388,2]
[340586833,1729517433028,-151.0,0.00016388,2]
[340586834,1729517433038,-772.469547,0.00016388,2]
[340586835,1729517433048,-772.469547,0.00016388,2]
[340586836,1729517433058,-343.740269,0.00016388,2]
[340586837,1729517433067,-343.740269,0.00016388,2]
[340586838,1729517433079,-343.740269,0.00016388,2]
[340586839,1729517433089,-343.740269,0.00016388,2]
[340586840,1729517433098,-151.0,0.00016388,2]
[340586841,1729517433111,-151.0,0.00016388,2]
[340586842,1729517433121,-500.0,0.00016398,2]
[340586843,1729517433131,-151.0,0.00016398,2]
[340586844,1729517433141,-480.29416,0.00016398,2]
[340586845,1729517433150,-151.0,0.00016398,2]
[340586846,1729517433160,-235.105864,0.00016398,2]
[340586847,1729517433169,-235.105864,0.00016398,2]
[340586848,1729517433179,-151.0,0.00016398,2]
[340586849,1729517433189,-151.0,0.00016398,2]
[340586850,1729517433199,-324.166657,0.00016398,2]
[340586851,1729517433208,-324.166657,0.00016398,2]
[340586852,1729517433219,-151.0,0.00016399,2]
[340586853,1729517433228,-151.0,0.00016399,2]
[340586854,1729517433237,-151.0,0.00016399,2]
[340586855,1729517433247,-151.0,0.00016399,2]
[340586856,1729517433256,-151.0,0.00016399,2]
[340586857,1729517433266,-151.0,0.00016399,2]
[340586858,1729517433276,-151.0,0.00016399,2]
[340586859,1729517433285,-151.0,0.00016399,2]
[340586860,1729517433295,-151.0,0.00016399,2]
[340586861,1729517433305,-151.0,0.00016399,2]
[340586862,1729517433315,-151.0,0.00016399,2]
[340586863,1729517433325,-151.0,0.00016399,2]
[340586864,1729517433335,-151.0,0.00016399,2]
[340586865,1729517433345,-381.170813,0.00016399,2]
[340586866,1729517433356,-174.666284,0.00016399,2]
[340586867,1729517433366,-174.666284,0.00016399,2]
[340586868,1729517433376,-151.0,0.00016399,2]
[340586869,1729517433385,-467.964713,0.00016399,2]
[340586870,1729517433395,-467.964713,0.00016399,2]
[340586871,1729517433404,-214.119991,0.00016399,2]
[340586872,1729517433415,-217.215074,0.00016399,2]
[340586873,1729517433426,-480.29416,0.00016399,2]
[340586874,1729517433436,-217.215074,0.00016399,2]
[340586875,1729517433445,-151.0,0.00016399,2]
[340586876,1729517433455,-235.105864,0.00016399,2]
[340586877,1729517433464,-235.105864,0.00016399,2]
[340586878,1729517433474,-151.0,0.00016399,2]
[340586879,1729517433483,-151.0,0.00016399,2]
[340586880,1729517433494,-151.0,0.00016399,2]
[340586881,1729517433503,-324.166657,0.00016399,2]
[340586882,1729517433512,-96.55359267,0.00016399,2]
[340586883,1729517433525,-227.61306433,0.00016399,2]
[340586884,1729517433535,-151.0,0.00016399,2]
[340586885,1729517433545,-252.161024,0.00016399,2]
[340586886,1729517433555,-268.692063,0.00016399,2]
[340586887,1729517433564,-151.0,0.00016399,2]
[340586888,1729517433575,-252.161024,0.00016399,2]
[340586889,1729517433585,-268.692063,0.00016399,2]
[340586890,1729517433594,-151.0,0.00016399,2]
[340586891,1729517433603,-151.0,0.00016399,2]
[340586892,1729517433614,-151.0,0.00016399,2]
[340586893,1729517433623,-12.17060167,0.00016399,2]
[340586894,1729517433635,-138.82939833,0.00016399,2]
[340586895,1729517433645,-772.469547,0.00016399,2]
[340586896,1729517433655,-442.70105467,0.00016399,2]
[340586966,1729517439971,-561.36073941,0.00016337,2]
[340586967,1729517439981,-329.76849233,0.00016399,2]
[340586968,1729517439990,-343.740269,0.00016399,2]
[340586969,1729517440000,-343.740269,0.00016399,2]
[340586972,1729517440010,-151.0,0.00016399,2]
[340586973,1729517440019,-150.112234,0.000164,2]
[340586974,1729517440029,-2500.0,0.000164,2]
[340586975,1729517440039,-20000.0,0.000164,2]
[340586976,1729517440049,-150.0,0.000164,2]
[340586977,1729517440059,-150.112233,0.000164,2]
[340586978,1729517440068,-150.112233,0.000164,2]
[340586979,1729517440078,-150.112233,0.000164,2]
[340586980,1729517440088,-150.112233,0.000164,2]
[340586981,1729517440098,-150.112233,0.000164,2]
[340586982,1729517440107,-150.112233,0.000164,2]
[340586983,1729517440118,-150.112233,0.000164,2]
[340586984,1729517440128,-150.112233,0.000164,2]
[340586985,1729517440138,-187.403947,0.000164,2]
[340586986,1729517440148,-150.112233,0.000164,2]
[340586988,1729517440157,-150.112233,0.000164,2]
[340586990,1729517440167,-150.112233,0.000164,2]
[340586992,1729517440176,-150.112233,0.000164,2]
[340586994,1729517440186,-150.112233,0.000164,2]
[340586996,1729517440196,-150.112233,0.000164,2]
[340586998,1729517440205,-150.112233,0.000164,2]
[340587000,1729517440216,-150.112233,0.000164,2]
[340587002,1729517440225,-150.112233,0.000164,2]
[340587004,1729517440235,-150.112233,0.000164,2]
[340587006,1729517440245,-150.112233,0.000164,2]
[340587008,1729517440254,-150.112233,0.000164,2]
[340587010,1729517440264,-150.112236,0.000164,2]
[340587012,1729517440274,-235.298777,0.00016408,2]
[340587014,1729517440283,-151.0,0.00016408,2]
[340587016,1729517440293,-152.868135,0.00016408,2]
[340587018,1729517440303,-151.0,0.00016408,2]
[340587020,1729517440312,-151.0,0.00016408,2]
[340587022,1729517440322,-152.03962,0.00016408,2]
[340587024,1729517440333,-151.0,0.00016408,2]
[340587026,1729517440343,-151.0,0.00016408,2]
[340587028,1729517440353,-151.0,0.00016408,2]
[340587030,1729517440363,-211.686909,0.00016408,2]
[340587032,1729517440373,-151.0,0.00016408,2]
[340587034,1729517440382,-151.0,0.00016408,2]
[340587036,1729517440392,-151.0,0.00016408,2]
[340587038,1729517440401,-151.0,0.00016408,2]
[340587040,1729517440411,-151.771416,0.00016408,2]
[340587042,1729517440421,-151.0,0.00016408,2]
[340587044,1729517440430,-151.0,0.00016408,2]
[340587046,1729517440440,-151.0,0.00016408,2]
[340587048,1729517440450,-151.0,0.00016408,2]
[340587050,1729517440460,-151.0,0.00016408,2]
[340587052,1729517440469,-155.06396,0.00016408,2]
[340587054,1729517440479,-381.170813,0.00016408,2]
[340587056,1729517440488,-381.170813,0.00016408,2]
[340587058,1729517440498,-174.666284,0.00016408,2]
[340587060,1729517440509,-174.666284,0.00016408,2]
[340587062,1729517440519,-174.666284,0.00016408,2]
[340587064,1729517440528,-174.666284,0.00016408,2]
[340587066,1729517440538,-467.964713,0.00016408,2]
[340587068,1729517440547,-467.964713,0.00016408,2]
[340587070,1729517440557,-467.964713,0.00016408,2]
[340587072,1729517440566,-467.964713,0.00016408,2]
[340587074,1729517440575,-467.964713,0.00016408,2]
[340587075,1729517440586,-467.964713,0.00016408,2]
[340587078,1729517440596,-217.215074,0.00016408,2]
[340587079,1729517440605,-217.215074,0.00016408,2]
[340587081,1729517440615,-217.215074,0.00016408,2]
[340587084,1729517440625,-217.215074,0.00016408,2]
[340587085,1729517440635,-217.215074,0.00016408,2]
[340587087,1729517440644,-217.215074,0.00016408,2]
[340587089,1729517440653,-151.0,0.00016408,2]
[340587091,1729517440662,-235.105864,0.00016408,2]
[340587093,1729517440672,-235.105864,0.00016408,2]
[340587095,1729517440682,-167.97835,0.00016408,2]
[340587097,1729517440692,-151.0,0.00016408,2]
[340587099,1729517440702,-151.0,0.00016408,2]
[340587101,1729517440712,-151.0,0.00016408,2]
[340587103,1729517440722,-151.0,0.00016408,2]
[340587105,1729517440731,-324.166657,0.00016408,2]
[340587107,1729517440740,-324.166657,0.00016408,2]
[340587109,1729517440750,-151.0,0.00016408,2]
[340587111,1729517440760,-252.161024,0.00016408,2]
[340587113,1729517440769,-268.692063,0.00016408,2]
[340587115,1729517440779,-151.0,0.00016408,2]
[340587117,1729517440788,-252.161024,0.00016408,2]
[340587119,1729517440797,-268.692063,0.00016408,2]
[340587121,1729517440807,-151.0,0.00016408,2]
[340587123,1729517440816,-151.0,0.00016408,2]
[340587125,1729517440825,-151.0,0.00016408,2]
[340587127,1729517440836,-286.78584,0.00016408,2]
[340587129,1729517440845,-772.469547,0.00016408,2]
[340587131,1729517440859,-772.469547,0.00016408,2]
[340587133,1729517440868,-343.740269,0.00016408,2]
[340587135,1729517440878,-343.740269,0.00016408,2]
[340587137,1729517440888,-151.0,0.00016408,2]
[340587139,1729517440898,-12611.02288798,0.00016408,2]
[340587163,1729517441197,-3055.081381,0.00016408,2]
[340587164,1729517441209,-16906.47225712,0.00016408,2]
[340587165,1729517441219,-81323.9890534,0.00016408,2]
[340587166,1729517441229,-151.0,0.00016418,2]
[340587167,1729517441240,-151.0,0.00016418,2]
[340587168,1729517441250,-151.0,0.00016418,2]
[340587169,1729517441259,-151.0,0.00016418,2]
[340587170,1729517441269,-151.0,0.00016418,2]
[340587171,1729517441278,-151.0,0.00016418,2]
[340587172,1729517441287,-151.0,0.00016418,2]
[340587173,1729517441297,-151.0,0.00016418,2]
[340587174,1729517441308,-151.0,0.00016418,2]
[340587175,1729517441317,-218.922493,0.00016418,2]
[340587176,1729517441327,-151.0,0.00016418,2]
[340587177,1729517441338,-151.0,0.00016418,2]
[340587178,1729517441348,-151.0,0.00016418,2]
[340587179,1729517441357,-151.0,0.00016418,2]
[340587180,1729517441367,-151.0,0.00016418,2]
[340587181,1729517441376,-151.0,0.00016418,2]
[340587182,1729517441386,-381.170813,0.00016418,2]
[340587183,1729517441395,-381.170813,0.00016418,2]
[340587184,1729517441404,-174.666284,0.00016418,2]
[340587185,1729517441414,-174.666284,0.00016418,2]
[340587186,1729517441423,-174.666284,0.00016418,2]
[340587187,1729517441432,-174.666284,0.00016418,2]
[340587188,1729517441441,-467.964713,0.00016418,2]
[340587189,1729517441450,-467.964713,0.00016418,2]
[340587190,1729517441459,-467.964713,0.00016418,2]
[340587191,1729517441469,-467.964713,0.00016418,2]
[340587193,1729517441478,-217.215074,0.00016418,2]
[340587195,1729517441487,-217.215074,0.00016418,2]
[340587196,1729517441496,-217.215074,0.00016418,2]
[340587198,1729517441506,-217.215074,0.00016418,2]
[340587200,1729517441515,-151.0,0.00016418,2]
[340587202,1729517441525,-245.23360368,0.00016427,2]
[340587204,1729517441534,-5843.23378022,0.00016428,2]
[340587206,1729517441544,-6657.34611888,0.00016428,2]
[340587208,1729517441553,-151.0,0.00016428,2]
[340587210,1729517441563,-151.0,0.00016428,2]
[340587212,1729517441572,-151.0,0.00016428,2]
[340587214,1729517441583,-151.0,0.00016428,2]
[340587216,1729517441593,-151.0,0.00016428,2]
[340587218,1729517441602,-151.0,0.00016428,2]
[340587220,1729517441612,-151.0,0.00016428,2]
[340587222,1729517441621,-151.0,0.00016428,2]
[340587250,1729517441878,-153.830803,0.00016428,2]
[340587252,1729517441888,-151.0,0.00016428,2]
[340587253,1729517441897,-151.0,0.00016428,2]
[340587255,1729517441906,-151.0,0.00016428,2]
[340587257,1729517441916,-1128.394381,0.00016428,2]
[340587259,1729517441925,-1128.394381,0.00016428,2]
[340587261,1729517441935,-151.0,0.00016428,2]
[340587263,1729517441944,-151.0,0.00016428,2]
[340587265,1729517441953,-179.394852,0.00016428,2]
[340587267,1729517441963,-179.394852,0.00016428,2]
[340587269,1729517441972,-151.0,0.00016428,2]
[340587271,1729517441981,-151.0,0.00016428,2]
[340587273,1729517441991,-417.178347,0.00016428,2]
[340587275,1729517442000,-417.178347,0.00016428,2]
[340587277,1729517442009,-151.0,0.00016428,2]
[340587279,1729517442018,-151.0,0.00016428,2]
[340587281,1729517442028,-228008.035683,0.00016428,2]
[340587283,1729517442037,-325295.956214,0.00016428,2]
[340587285,1729517442046,-412.63495483,0.00016437,2]
[340587287,1729517442056,-4170.8639268,0.00016437,2]
[340587289,1729517442065,-480.29416,0.00016437,2]
[340587291,1729517442075,-151.0,0.00016437,2]
[340587293,1729517442087,-235.105864,0.00016437,2]
[340587295,1729517442097,-235.105864,0.00016437,2]
[340587297,1729517442106,-151.0,0.00016437,2]
[340587299,1729517442117,-324.166657,0.00016437,2]
[340587301,1729517442127,-324.166657,0.00016437,2]
[340587303,1729517442136,-151.0,0.00016437,2]
[340587305,1729517442146,-252.161024,0.00016437,2]
[340587307,1729517442155,-268.692063,0.00016437,2]
[340587309,1729517442165,-151.0,0.00016437,2]
[340587311,1729517442174,-252.161024,0.00016437,2]
[340587313,1729517442183,-268.692063,0.00016437,2]
[340587315,1729517442192,-163.518947,0.00016437,2]
[340587317,1729517442201,-151.0,0.00016437,2]
[340587319,1729517442211,-151.0,0.00016437,2]
[340587321,1729517442220,-772.469547,0.00016437,2]
[340587323,1729517442230,-772.469547,0.00016437,2]
[340587325,1729517442239,-343.740269,0.00016437,2]
[340587326,1729517442248,-343.740269,0.00016437,2]
[340587328,1729517442257,-151.0,0.00016437,2]
[340587330,1729517442266,-500.0,0.00016438,2]
[340587332,1729517442275,-500.0,0.00016438,2]
[340587334,1729517442284,-500.0,0.00016438,2]
[340587336,1729517442294,-151.0,0.00016438,2]
[340587338,1729517442304,-151.0,0.00016438,2]
[340587340,1729517442313,-151.0,0.00016438,2]
[340587342,1729517442322,-151.0,0.00016438,2]
[340587344,1729517442333,-151.0,0.00016438,2]
[340587346,1729517442343,-229.393939,0.00016438,2]
[340587348,1729517442352,-500.0,0.00016438,2]
[340587350,1729517442361,-500.0,0.00016438,2]
[340587352,1729517442370,-510.88579333,0.00016438,2]
[340587354,1729517442379,-500.0,0.00016438,2]
[340587356,1729517442389,-500.0,0.00016438,2]
[340587358,1729517442398,-151.0,0.00016438,2]
[340587360,1729517442408,-151.0,0.00016438,2]
[340587362,1729517442418,-151.0,0.00016438,2]
[340587364,1729517442427,-151.0,0.00016438,2]
[340587366,1729517442436,-151.0,0.00016438,2]
[340587368,1729517442446,-151.0,0.00016438,2]
[340587370,1729517442455,-238.168373,0.00016438,2]
[340587372,1729517442466,-501.51459694,0.00016438,2]
[340587374,1729517442476,-500.55522641,0.00016438,2]
[340587376,1729517442485,-501.43484337,0.00016438,2]
[340587378,1729517442494,-151.0,0.00016438,2]
[340587380,1729517442503,-151.0,0.00016438,2]
[340587382,1729517442512,-210.469771,0.00016438,2]
[340587384,1729517442522,-500.0,0.00016438,2]
[340587386,1729517442531,-500.0,0.00016438,2]
[340587388,1729517442541,-500.0,0.00016438,2]
[340587390,1729517442550,-500.0,0.00016438,2]
[340587392,1729517442559,-878.19,0.00016438,2]
[340587394,1729517442569,-500.0,0.00016438,2]
[340587396,1729517442578,-500.0,0.00016438,2]
[340587398,1729517442590,-1441.68,0.00016438,2]
[340587400,1729517442600,-500.0,0.00016438,2]
[340587402,1729517442609,-500.0,0.00016438,2]
[340587404,1729517442618,-509.47770946,0.00016438,2]
[340587405,1729517442627,-500.0,0.00016438,2]
[340587407,1729517442637,-500.0,0.00016438,2]
[340587409,1729517442646,-500.78134076,0.00016438,2]
[340587411,1729517442655,-155.42304752,0.00016438,2]
[340587413,1729517442665,-165.14769849,0.00016438,2]
[340587415,1729517442674,-500.0,0.00016438,2]
[340587417,1729517442683,-500.0,0.00016438,2]
[340587419,1729517442692,-306.06920862,0.00016438,2]
[340587421,1729517442702,-500.0,0.00016438,2]
[340587423,1729517442712,-500.0,0.00016438,2]
[340587425,1729517442722,-500.0,0.00016438,2]
[340587427,1729517442732,-500.0,0.00016438,2]
[340587429,1729517442741,-1381.84,0.00016438,2]
[340587431,1729517442752,-500.0,0.00016438,2]
[340587433,1729517442761,-500.0,0.00016438,2]
[340587435,1729517442771,-620.1,0.00016438,2]
[340587437,1729517442780,-500.0,0.00016438,2]
[340587439,1729517442790,-505.85788359,0.00016438,2]
[340587441,1729517442799,-500.0,0.00016438,2]
[340587443,1729517442808,-500.0,0.00016438,2]
[340587445,1729517442817,-500.0,0.00016438,2]
[340587447,1729517442826,-500.0,0.00016438,2]
[340587449,1729517442838,-1468.36,0.00016438,2]
[340587451,1729517442852,-500.0,0.00016438,2]
[340587453,1729517442862,-500.0,0.00016438,2]
[340587455,1729517442871,-500.0,0.00016438,2]
[340587457,1729517442881,-500.0,0.00016438,2]
[340587459,1729517442890,-500.0,0.00016438,2]
[340587461,1729517442901,-1286.17,0.00016438,2]
[340587463,1729517442911,-500.0,0.00016438,2]
[340587464,1729517442920,-500.0,0.00016438,2]
[340587466,1729517442932,-500.0,0.00016438,2]
[340587468,1729517442942,-500.0,0.00016438,2]
[340587470,1729517442951,-924.74,0.00016438,2]
[340587472,1729517442961,-500.0,0.00016438,2]
[340587474,1729517442971,-1265.65,0.00016438,2]
[340587476,1729517442980,-500.0,0.00016438,2]
[340587478,1729517442990,-500.0,0.00016438,2]
[340587480,1729517442999,-1291.35,0.00016438,2]
[340587482,1729517443009,-500.0,0.00016438,2]
[340587484,1729517443019,-500.0,0.00016438,2]
[340587486,1729517443028,-434.94224412,0.00016438,2]
[340587488,1729517443037,-500.0,0.00016438,2]
[340587490,1729517443047,-500.0,0.00016438,2]
[340587493,1729517443056,-500.0,0.00016438,2]
[340587496,1729517443065,-961.67,0.00016438,2]
[340587499,1729517443075,-500.0,0.00016438,2]
[340587501,1729517443086,-500.0,0.00016438,2]
[340587503,1729517443099,-500.0,0.00016438,2]
[340587505,1729517443108,-694.09,0.00016438,2]
[340587507,1729517443119,-500.0,0.00016438,2]
[340587510,1729517443129,-500.0,0.00016438,2]
[340587513,1729517443138,-500.0,0.00016438,2]
[340587515,1729517443148,-500.29953849,0.00016438,2]
[340587517,1729517443158,-500.0,0.00016438,2]
[340587519,1729517443167,-669.07,0.00016438,2]
[340587521,1729517443176,-500.0,0.00016438,2]
[340587523,1729517443186,-500.0,0.00016438,2]
[340587525,1729517443195,-370.06861828,0.00016438,2]
[340587527,1729517443205,-500.73707659,0.00016438,2]
[340587529,1729517443215,-500.0,0.00016438,2]
[340587531,1729517443224,-500.0,0.00016438,2]
[340587533,1729517443234,-500.0,0.00016438,2]
[340587535,1729517443245,-500.0,0.00016438,2]
[340587537,1729517443255,-508.51436058,0.00016438,2]
[340587539,1729517443264,-500.0,0.00016438,2]
[340587541,1729517443274,-1009.69,0.00016438,2]
[340587543,1729517443283,-500.0,0.00016438,2]
[340587545,1729517443293,-500.0,0.00016438,2]
[340587547,1729517443303,-500.0,0.00016438,2]
[340587549,1729517443312,-937.4,0.00016438,2]
[340587551,1729517443321,-1618.23,0.00016438,2]
[340587553,1729517443330,-500.0,0.00016438,2]
[340587555,1729517443344,-500.0,0.00016438,2]
[340587556,1729517443354,-500.0,0.00016438,2]
[340587559,1729517443365,-151.0,0.00016438,2]
[340587561,1729517443375,-151.0,0.00016438,2]
[340587563,1729517443386,-151.0,0.00016438,2]
[340587565,1729517443396,-151.0,0.00016438,2]
[340587566,1729517443405,-151.0,0.00016438,2]
[340587569,1729517443416,-151.0,0.00016438,2]
[340587570,1729517443425,-500.0,0.00016438,2]
[340587572,1729517443435,-151.0,0.00016438,2]
[340587574,1729517443444,-500.0,0.00016438,2]
[340587576,1729517443454,-554.07233275,0.00016438,2]
[340587578,1729517443463,-151.0,0.00016438,2]
[340587580,1729517443473,-236.548386,0.00016438,2]
[340587582,1729517443484,-348.14159679,0.00016438,2]
[340587584,1729517443494,-775.5,0.00016438,2]
[340587586,1729517443504,-500.0,0.00016438,2]
[340587588,1729517443514,-500.0,0.00016438,2]
[340587590,1729517443524,-998.99,0.00016438,2]
[340587592,1729517443534,-500.0,0.00016438,2]
[340587594,1729517443544,-500.0,0.00016438,2]
[340587596,1729517443554,-500.0,0.00016438,2]
[340587598,1729517443563,-500.0,0.00016438,2]
[340587600,1729517443573,-500.0,0.00016438,2]
[340587602,1729517443584,-534.19,0.00016438,2]
[340587604,1729517443593,-500.0,0.00016438,2]
[340587606,1729517443602,-500.0,0.00016438,2]
[340587608,1729517443613,-187.24454827,0.00016438,2]
[340587610,1729517443622,-500.0,0.00016438,2]
[340587612,1729517443631,-500.0,0.00016438,2]
[340587614,1729517443640,-500.0,0.00016438,2]
[340587616,1729517443649,-1843.42,0.00016438,2]
[340587617,1729517443659,-521.88034201,0.00016438,2]
[340587619,1729517443668,-500.0,0.00016438,2]
[340587621,1729517443677,-500.0,0.00016438,2]
[340587623,1729517443686,-2668.68,0.00016438,2]
[340587625,1729517443696,-1331.48,0.00016438,2]
[340587627,1729517443706,-500.0,0.00016438,2]
[340587629,1729517443716,-500.0,0.00016438,2]
[340587631,1729517443726,-500.0,0.00016438,2]
[340587633,1729517443735,-624.25,0.00016438,2]
[340587635,1729517443745,-500.0,0.00016438,2]
[340587638,1729517443755,-500.0,0.00016438,2]
[340587639,1729517443765,-500.0,0.00016438,2]
[340587641,1729517443775,-500.45812343,0.00016438,2]
[340587643,1729517443784,-500.0,0.00016438,2]
[340587645,1729517443794,-617.44,0.00016438,2]
[340587647,1729517443803,-547.81355773,0.00016438,2]
[340587649,1729517443812,-880.48,0.00016438,2]
[340587651,1729517443822,-738.4,0.00016438,2]
[340587653,1729517443832,-213.99,0.00016438,2]
[340587655,1729517443843,-204.1002286,0.00016438,2]
[340587657,1729517443857,-465.39530781,0.00016438,2]
[340587659,1729517443867,-500.0,0.00016438,2]
[340587661,1729517443877,-500.0,0.00016438,2]
[340587663,1729517443886,-500.0,0.00016438,2]
[340587665,1729517443896,-500.0,0.00016438,2]
[340587667,1729517443906,-500.0,0.00016438,2]
[340587669,1729517443916,-321.44456386,0.00016438,2]
[340587671,1729517443925,-500.0,0.00016438,2]
[340587673,1729517443935,-500.0,0.00016438,2]
[340587675,1729517443944,-500.0,0.00016438,2]
[340587677,1729517443954,-500.0,0.00016438,2]
[340587679,1729517443964,-500.0,0.00016438,2]
[340587680,1729517443974,-500.0,0.00016438,2]
[340587682,1729517443983,-500.0,0.00016438,2]
[340587684,1729517443993,-500.0,0.00016438,2]
[340587686,1729517444003,-599.24932482,0.00016438,2]
[340587688,1729517444012,-684.6,0.00016438,2]
[340587690,1729517444022,-500.0,0.00016438,2]
[340587692,1729517444031,-837.97,0.00016438,2]
[340587694,1729517444041,-500.0,0.00016438,2]
[340587696,1729517444052,-500.0,0.00016438,2]
[340587698,1729517444062,-259.8842527,0.00016438,2]
[340587700,1729517444072,-151.0,0.00016438,2]
[340587702,1729517444083,-949.38,0.00016438,2]
[340587704,1729517444093,-500.0,0.00016438,2]
[340587706,1729517444103,-151.0,0.00016438,2]
[340587708,1729517444114,-2036.97,0.00016438,2]
[340587710,1729517444123,-190.357427,0.00016438,2]
[340587712,1729517444133,-500.0,0.00016438,2]
[340587714,1729517444142,-1053.88,0.00016438,2]
[340587716,1729517444151,-500.0,0.00016438,2]
[340587718,1729517444161,-500.77455274,0.00016438,2]
[340587720,1729517444170,-500.0,0.00016438,2]
[340587722,1729517444179,-500.0,0.00016438,2]
[340587724,1729517444189,-500.0,0.00016438,2]
[340587726,1729517444198,-500.0,0.00016438,2]
[340587728,1729517444208,-500.0,0.00016438,2]
[340587730,1729517444217,-500.0,0.00016438,2]